bitfinex/quotes_ETHUSD_20240731
["timestamp","ask_amount","ask_price","bid_price","bid_amount"]
[1722416045931,1.107,3328.1,3327.9,3.00489]
[1722416046156,3.592,3328.3,3327.9,3.00489]
[1722416046961,3.3785,3328.7,3328.2,3.00459]
[1722416047163,3.3785,3328.7,3328.2,3.305019]
[1722416047365,1.107,3328.5,3328.3,35.0]
[1722416047723,1.107,3328.5,3328.0,3.00472]
[1722416048065,4.11139,3328.5,3327.9,3.00484]
[1722416048289,1.107,3328.3,3328.0,35.0]
[1722416048567,1.107,3328.1,3327.7,3.00501]
[1722416048930,1.107,3328.1,3327.8,35.0]
[1722416050437,1.107,3327.9,3327.4,3.00531]
[1722416050931,1.107,3327.9,3327.6,3.00511]
[1722416051132,1.107,3327.9,3327.5,3.00518]
[1722416051365,1.107,3327.9,3327.6,3.00516]
[1722416051672,1.107,3328.1,3327.6,3.00516]
[1722416051844,2.4956,3328.2,3327.7,3.00507]
[1722416052030,3.6026,3328.2,3327.7,3.00507]
[1722416054076,1.107,3328.0,3327.5,3.00518]
[1722416054274,1.107,3327.8,3327.5,3.00518]
[1722416054939,1.107,3327.8,3327.4,38.00532]
[1722416055139,1.107,3327.8,3327.4,41.01061]
[1722416055339,1.107,3327.8,3327.4,38.00529]
[1722416055872,3.4088,3327.8,3327.4,35.0]
[1722416056232,3.4088,3327.8,3327.4,38.00534]
[1722416056646,6.41385,3327.8,3327.2,3.416699]
[1722416056863,6.41385,3327.8,3327.2,3.00544]
[1722416057266,6.41385,3327.8,3327.3,35.0]
[1722416057643,3.4088,3327.8,3327.3,38.00542]
[1722416057841,2.4439,3328.0,3327.5,3.00517]
[1722416058047,3.5509,3328.0,3327.6,3.00515]
[1722416058544,3.5509,3328.0,3327.6,38.00515]
[1722416058742,3.5509,3328.0,3327.6,3.00515]
[1722416059182,1.107,3328.0,3327.6,38.00515]
[1722416062486,1.107,3328.0,3327.7,3.00502]
[1722416063047,1.107,3328.0,3327.8,35.0]
[1722416063490,1.107,3328.0,3327.7,3.00502]
[1722416064059,1.107,3328.0,3327.7,38.00502]
[1722416064581,1.107,3328.0,3327.7,35.0]
[1722416064884,1.107,3328.0,3327.6,3.00513]
[1722416065246,1.107,3327.8,3327.6,38.00513]
[1722416065455,1.107,3327.8,3327.3,3.00538]
[1722416065670,1.107,3327.8,3327.4,3.00531]
[1722416065854,1.107,3327.8,3327.4,38.00531]
[1722416066470,1.107,3327.8,3327.5,3.00525]
[1722416066782,1.107,3327.8,3327.7,3.00507]
[1722416066981,1.107,3327.8,3327.5,6.01036]
[1722416067400,1.107,3327.8,3327.6,3.00515]
[1722416067954,1.107,3327.8,3327.4,38.00529]
[1722416072095,1.107,3327.8,3327.5,3.00525]
[1722416072694,1.107,3327.8,3327.5,38.00525]
[1722416075403,9.7418,3328.4,3327.8,3.00494]
[1722416075589,9.7418,3328.4,3328.1,3.00469]
[1722416075910,3.3688,3328.4,3328.1,3.00469]
[1722416076760,1.107,3328.4,3327.7,2.3404]
[1722416076985,1.107,3328.4,3328.3,3.00453]
[1722416079363,1.107,3328.6,3328.4,3.00439]
[1722416081103,3.00399,3328.9,3328.4,0.300439]
[1722416081104,1.107,3328.9,3328.4,0.300439]
[1722416081414,3.4016,3329.1,3328.6,3.00421]
[1722416081622,1.107,3328.9,3328.6,3.00421]
[1722416082187,1.107,3328.9,3328.7,3.00415]
[1722416083268,1.107,3328.9,3328.8,3.00408]
[1722416084519,1.107,3328.9,3328.7,3.00416]
[1722416084882,1.107,3328.9,3328.6,3.00424]
[1722416085281,1.107,3328.9,3328.6,3.0042]
[1722416086739,2.2946,3329.1,3328.4,3.00443]
[1722416086740,1.107,3328.7,3328.4,3.00438]
[1722416089121,1.107,3328.7,3328.3,3.00451]
[1722416089629,1.107,3328.7,3328.1,5.26983]
[1722416089767,6.00824,3328.8,3328.0,3.00475]
[1722416089768,1.107,3328.5,3328.2,3.00456]
[1722416090276,1.107,3328.5,3328.0,6.00949]
[1722416090620,1.107,3328.3,3328.1,3.00471]
[1722416091390,1.107,3328.5,3328.1,3.00471]
[1722416092345,1.107,3328.5,3327.9,3.00481]
[1722416092491,1.107,3328.5,3328.0,3.00475]
[1722416093152,1.107,3328.5,3328.1,3.00471]
[1722416094874,1.107,3328.3,3327.9,3.00481]
[1722416095459,1.107,3328.3,3328.0,3.0048]
[1722416098349,1.107,3328.1,3327.7,3.00501]
[1722416098553,3.5615,3328.1,3327.7,3.00501]
[1722416098727,3.5615,3328.1,3327.6,3.00515]
[1722416099235,3.5615,3328.1,3327.6,6.01023]
[1722416099443,3.5615,3328.1,3327.7,3.00505]
[1722416100220,3.5615,3328.1,3327.7,3.00501]
[1722416100581,3.5615,3328.1,3327.5,3.0052]
[1722416100781,3.5615,3328.1,3327.7,3.00502]
[1722416100923,3.5615,3328.1,3327.6,3.00515]
[1722416101123,3.5615,3328.1,3327.4,7.47]
[1722416101124,6.56623,3328.1,3327.4,7.47]
[1722416101320,6.56623,3328.1,3327.5,3.0052]
[1722416101536,4.11189,3327.9,3327.4,10.47534]
[1722416101888,4.11189,3327.9,3327.4,10.47533]
[1722416101889,1.107,3327.7,3327.4,10.47533]
[1722416102067,1.107,3327.7,3327.4,3.00533]
[1722416102225,3.431,3327.7,3327.4,3.00533]
[1722416103335,3.431,3327.7,3327.3,3.00543]
[1722416104235,2.324,3327.7,3327.4,3.00534]
[1722416104435,3.5556,3327.9,3327.4,3.00534]
[1722416106070,1.107,3327.7,3327.2,3.00547]
[1722416106457,1.107,3327.7,3327.2,3.00546]
[1722416107167,1.107,3327.7,3327.3,3.00538]
[1722416110100,5.45355,3327.9,3327.3,3.00538]
[1722416110261,1.107,3327.8,3327.3,3.00538]
[1722416111271,4.11199,3327.8,3327.3,3.00538]
[1722416111985,4.11199,3327.8,3327.1,3.0056]
[1722416112171,4.11217,3327.6,3327.1,3.0056]
[1722416112350,1.107,3327.6,3327.1,3.0056]
[1722416114393,1.107,3327.6,3327.1,3.00555]
[1722416114687,1.107,3327.6,3327.2,3.00552]
[1722416115854,1.107,3327.6,3326.9,6.00575]
[1722416116590,1.107,3327.6,3327.1,3.00554]
[1722416123828,7.48,3328.1,3326.8,3.00581]
[1722416123829,1.107,3327.4,3326.8,3.00581]
[1722416124027,1.107,3327.2,3326.7,3.00597]
[1722416124332,4.11258,3327.2,3326.7,3.00597]
[1722416125433,4.11258,3327.2,3326.5,2.3936]
[1722416125631,4.11258,3327.2,3326.6,3.00602]
[1722416126422,2.2772,3327.1,3326.6,3.00602]
[1722416128613,1.107,3327.0,3326.4,3.00616]
[1722416128812,1.107,3327.0,3326.5,3.0061]
[1722416129633,1.107,3327.0,3326.6,3.00606]
[1722416130024,1.107,3327.0,3326.5,3.00616]
[1722416131859,1.107,3327.0,3326.2,5.38508]
[1722416132057,1.107,3327.0,3326.2,6.034308]
[1722416132261,3.00585,3326.9,3326.2,9.040688]
[1722416132561,1.107,3326.8,3326.3,3.00633]
[1722416132703,1.107,3326.8,3326.4,3.00623]
[1722416132909,1.107,3327.0,3326.4,3.00619]
[1722416133147,4.11272,3327.0,3326.4,3.00619]
[1722416134562,1.107,3327.0,3326.5,3.0061]
[1722416136622,1.107,3327.0,3326.5,3.00609]
[1722416136799,4.11271,3327.0,3326.5,3.00609]
[1722416139218,1.107,3327.0,3326.7,3.00596]
[1722416139514,1.107,3327.2,3326.8,3.00584]
[1722416139662,1.107,3327.2,3326.9,3.00579]
[1722416141219,1.107,3327.2,3327.0,3.00566]
[1722416141408,1.107,3327.4,3327.0,3.00566]
[1722416142404,1.107,3327.4,3326.9,3.00579]
[1722416142576,1.107,3327.4,3326.9,6.01153]
[1722416143024,1.107,3327.4,3326.9,3.00574]
[1722416143379,1.107,3327.4,3326.9,6.01148]
[1722416143680,1.107,3327.4,3327.0,3.00568]
[1722416143918,1.107,3327.4,3327.1,3.00556]
[1722416145925,8.587,3328.1,3327.7,3.00507]
[1722416146143,1.107,3328.1,3327.7,3.00507]
[1722416146303,2.3581,3328.2,3327.7,3.00507]
[1722416146304,3.4651,3328.2,3327.9,3.00484]
[1722416146685,3.4651,3328.2,3327.7,3.005]
[1722416147828,3.4651,3328.2,3327.8,3.00497]
[1722416151990,3.4651,3328.2,3327.8,3.00492]
[1722416154548,1.107,3328.2,3327.8,3.00492]
[1722416156467,1.107,3328.2,3327.8,6.00983]
[1722416156647,1.107,3328.2,3327.8,3.00491]
[1722416156825,1.107,3328.2,3327.7,3.005]
[1722416157159,1.107,3328.2,3327.8,3.00493]
[1722416158134,1.107,3328.2,3327.9,3.00488]
[1722416158348,1.107,3328.2,3327.9,6.00972]
[1722416158532,1.107,3328.4,3327.9,3.00485]
[1722416158734,1.107,3328.4,3328.1,3.00466]
[1722416159652,1.107,3328.4,3328.2,3.00457]
[1722416159984,7.48,3328.5,3328.3,3.00453]
[1722416160283,7.48,3328.5,3328.4,6.00888]
[1722416160580,2.3208,3328.9,3328.4,6.00888]
[1722416160581,2.3208,3328.9,3328.5,3.0043]
[1722416160740,2.3208,3328.9,3328.6,3.00425]
[1722416161164,1.107,3329.0,3328.6,3.00425]
[1722416161681,1.107,3329.0,3328.4,3.00437]
[1722416161996,1.107,3329.0,3328.6,3.00421]
[1722416162399,1.107,3328.8,3328.6,3.00421]
[1722416164195,1.107,3329.0,3328.6,3.00419]
[1722416164757,1.107,3329.0,3328.2,37.2621]
[1722416164758,1.107,3329.0,3328.2,40.26667]
[1722416165056,1.107,3328.8,3328.4,3.00444]
[1722416165984,1.107,3328.8,3328.4,3.00438]
[1722416166398,1.107,3328.8,3328.6,3.00421]
[1722416167089,7.48,3329.2,3328.6,5.40841]
[1722416167306,1.107,3329.0,3328.6,2.4042]
[1722416167856,1.107,3329.0,3328.5,6.00862]
[1722416168056,1.107,3329.0,3328.5,3.00427]
[1722416168705,1.107,3329.0,3328.5,6.00856]
[1722416168914,1.107,3329.0,3328.5,3.00427]
[1722416169610,3.00382,3329.1,3328.3,3.00452]
[1722416169611,4.11114,3328.8,3328.3,3.00452]
[1722416169790,4.11114,3328.8,3328.3,6.009]
[1722416169976,4.11114,3328.8,3328.3,6.00896]
[1722416169977,1.107,3328.8,3328.3,6.00896]
[1722416170377,4.11109,3328.8,3328.2,3.00454]
[1722416170575,4.11109,3328.8,3328.3,3.00451]
[1722416171325,4.11109,3328.8,3327.8,4.11194]
[1722416171326,3.00458,3328.3,3327.8,3.00491]
[1722416171457,1.107,3328.0,3327.8,3.00491]
[1722416171906,1.107,3328.0,3327.7,3.00507]
[1722416172093,1.107,3328.0,3327.7,3.546206]
[1722416172624,1.107,3328.0,3327.8,3.00493]
[1722416172919,1.107,3328.0,3327.7,3.546146]
[1722416174375,1.107,3328.0,3327.4,3.00526]
[1722416175091,3.4083,3328.0,3327.4,3.00526]
[1722416175283,3.4083,3328.0,3327.2,5.37884]
[1722416175284,1.107,3327.8,3327.2,5.37884]
[1722416175479,4.11199,3327.8,3327.2,5.916724]
[1722416175694,4.11199,3327.8,3327.2,3.543324]
[1722416175991,4.11216,3327.6,3327.1,3.0056]
[1722416178362,4.11216,3327.6,3327.0,3.0057]
[1722416178581,4.11216,3327.6,3327.0,6.05471288]
[1722416179574,1.107,3327.6,3327.1,3.00561]
[1722416179771,1.107,3327.6,3327.2,3.00552]
[1722416179995,1.107,3327.6,3327.3,3.00542]
[1722416180214,1.107,3327.6,3327.4,3.00529]
[1722416180416,1.107,3327.6,3327.3,3.00542]
[1722416180417,1.107,3327.8,3327.3,3.00542]
[1722416180708,1.107,3327.8,3327.4,3.00532]
[1722416181820,1.107,3327.8,3327.2,3.00546]
[1722416182020,1.107,3327.6,3327.2,3.00546]
[1722416182252,2.2551,3327.5,3327.1,35.0]
[1722416182625,1.107,3327.4,3327.1,35.0]
[1722416182791,1.107,3327.4,3326.8,3.00581]
[1722416183104,1.107,3327.4,3326.9,3.00578]
[1722416183306,1.107,3327.4,3327.0,35.0]
[1722416183903,4.11235,3327.4,3326.9,3.00578]
[1722416184101,1.107,3327.4,3326.8,0.535948]
[1722416184336,1.107,3327.4,3326.9,38.00578]
[1722416185638,1.107,3327.4,3327.1,3.0056]
[1722416186132,1.107,3327.4,3327.1,3.00557]
[1722416186298,2.2551,3327.5,3327.1,3.00557]
[1722416186998,1.107,3327.6,3327.2,3.00552]
[1722416189205,1.107,3327.6,3327.0,41.01134]
[1722416189550,1.107,3327.6,3327.0,38.00565]
[1722416190141,1.107,3327.4,3327.0,38.00564]
[1722416190505,1.107,3327.4,3327.1,3.00553]
[1722416191222,1.107,3327.6,3327.1,3.00553]
[1722416191419,1.107,3327.6,3327.2,3.00552]
[1722416193163,1.107,3327.6,3327.3,3.00543]
[1722416193307,1.107,3327.6,3327.1,38.00557]
[1722416193871,1.107,3327.6,3327.1,35.0]
[1722416194092,1.107,3327.4,3327.1,35.0]
[1722416195336,2.4681,3327.3,3327.1,38.00561]
[1722416195586,2.4681,3327.3,3327.1,35.0]
[1722416195955,2.4681,3327.3,3327.0,3.00566]
[1722416196341,2.4681,3327.3,3327.1,3.0056]
[1722416199782,2.4681,3327.3,3327.1,38.0056]
[1722416200184,2.4681,3327.3,3327.1,3.0056]
[1722416200417,2.4681,3327.3,3327.1,3.00555]
[1722416200797,2.4681,3327.3,3327.1,38.00555]
[1722416202518,1.107,3327.2,3327.1,35.0]
[1722416202704,1.107,3327.2,3326.7,3.00592]
[1722416203016,1.107,3327.0,3326.7,3.00592]
[1722416203193,1.107,3327.0,3326.8,38.00587]
[1722416204024,1.107,3327.2,3326.8,38.00587]
[1722416205191,1.107,3327.2,3326.8,35.0]
[1722416205593,2.3637,3326.9,3326.5,3.00616]
[1722416205993,2.3637,3326.9,3326.6,35.0]
[1722416208552,2.3637,3326.9,3326.6,38.00606]
[1722416209025,1.107,3327.0,3326.7,3.00593]
[1722416212721,1.107,3327.0,3326.7,35.0]
[1722416213126,1.107,3327.0,3326.5,3.00615]
[1722416213842,1.107,3327.0,3326.5,38.00615]
[1722416215327,1.107,3327.0,3326.5,41.01225]
[1722416215527,1.107,3327.0,3326.5,38.0061]
[1722416216252,1.107,3327.0,3326.6,3.00607]
[1722416220847,1.107,3327.0,3326.5,3.00615]
[1722416221046,1.107,3327.0,3326.4,3.00619]
[1722416221475,1.107,3327.0,3326.5,3.00616]
[1722416223381,1.107,3327.0,3326.6,3.00606]
[1722416223965,2.3041,3327.1,3326.6,3.00606]
[1722416224149,2.4618,3327.4,3326.8,3.00583]
[1722416224357,2.4618,3327.4,3326.9,3.00574]
[1722416226315,2.4618,3327.4,3327.0,3.00566]
[1722416226445,1.107,3327.5,3327.0,3.00566]
[1722416227383,1.107,3327.5,3326.9,2.4348]
[1722416227586,1.107,3327.5,3326.9,5.44055]
[1722416228177,4.11226,3327.5,3326.9,3.00575]
[1722416228367,4.11226,3327.5,3326.8,3.00586]
[1722416228571,1.107,3327.3,3326.8,3.00586]
[1722416229192,1.107,3327.3,3326.8,6.01167]
[1722416229389,1.107,3327.3,3326.8,9.06068288]
[1722416229585,1.107,3327.3,3327.0,3.0057]
[1722416229796,1.107,3327.3,3326.8,6.05482288]
[1722416230703,1.107,3327.3,3326.9,3.00578]
[1722416230909,1.107,3327.3,3326.8,3.04901288]
[1722416231436,1.107,3327.3,3326.8,6.05484288]
[1722416232727,1.107,3327.3,3326.8,6.01166]
[1722416234248,1.107,3327.3,3326.8,3.00583]
[1722416239241,1.107,3327.3,3326.7,2.4652]
[1722416239560,1.107,3327.3,3326.7,5.47113]
[1722416240639,1.107,3327.3,3326.7,3.00593]
[1722416242551,2.269,3327.2,3326.6,3.00601]
[1722416242949,2.269,3327.2,3326.6,38.00601]
[1722416243149,2.2651,3326.8,3326.4,3.00625]
[1722416246767,2.2651,3326.8,3326.5,35.0]
[1722416252465,2.3788,3327.0,3326.5,35.0]
[1722416255381,4.1128,3326.9,3326.5,35.0]
[1722416255679,4.1128,3326.9,3326.3,3.00634]
[1722416255680,1.107,3326.9,3326.3,3.00634]
[1722416255980,4.11281,3326.9,3326.2,3.00642]
[1722416256285,4.11281,3326.9,3326.4,35.0]
[1722416256879,1.107,3326.9,3326.4,35.0]
[1722416257566,4.1128,3326.9,3326.4,35.0]
[1722416259451,1.107,3326.9,3326.4,35.0]
[1722416260293,3.00589,3326.8,3326.4,35.0]
[1722416261270,3.00589,3326.8,3326.1,3.00651]
[1722416261666,3.00589,3326.8,3326.1,6.01298]
[1722416261872,3.00589,3326.8,3326.2,35.0]
[1722416263407,6.74084296,3332.2,3324.5,2.87786071]
[1722416263408,2.4519,3325.9,3325.0,5.33349]
[1722416263605,2.4519,3325.9,3325.0,2.326]
[1722416263931,6.56562,3325.9,3325.1,3.00736]
[1722416264067,6.56562,3325.9,3325.2,3.04901288]
[1722416264263,6.56562,3325.9,3325.2,6.05634288]
[1722416264565,3.5589,3325.9,3325.2,6.05634288]
[1722416265203,3.5589,3325.9,3325.2,3.04901288]
[1722416265426,3.5589,3325.9,3325.2,6.05634288]
[1722416265580,3.5589,3325.9,3325.3,0.90637129]
[1722416266617,6.5656,3325.9,3325.3,0.90637129]
[1722416267386,6.5656,3325.9,3325.4,35.0]
[1722416268076,3.5589,3325.9,3325.4,35.0]
[1722416273804,6.56562,3325.9,3325.4,35.0]
[1722416274005,3.0068,3325.8,3325.4,35.0]
[1722416274210,1.107,3325.7,3325.4,35.0]
[1722416274832,3.00701,3325.6,3325.4,35.0]
[1722416275034,1.107,3325.7,3324.8,2.4507]
[1722416275331,4.11388,3325.7,3325.0,3.00751]
[1722416275537,4.11388,3325.7,3325.1,35.0]
[1722416278114,7.12083,3325.7,3325.1,35.0]
[1722416278312,4.11388,3325.7,3325.1,35.0]
[1722416279539,1.107,3325.7,3325.1,38.04901288]
[1722416280545,4.11389,3325.7,3325.1,38.04901288]
[1722416282449,1.107,3325.7,3325.1,41.05637288]
[1722416282682,1.107,3325.7,3325.2,6.05631288]
[1722416282955,1.107,3325.7,3325.2,3.04901288]
[1722416283162,1.107,3325.7,3325.1,3.00737]
[1722416283327,1.107,3325.7,3325.2,35.0]
[1722416284813,2.4519,3325.9,3325.2,38.00733]
[1722416284814,3.5589,3325.9,3325.2,38.00733]
[1722416285047,3.5589,3325.9,3325.2,41.05634288]
[1722416285644,6.5656,3325.9,3325.2,41.05634288]
[1722416286362,6.5656,3325.9,3325.2,44.06361288]
[1722416286732,6.5656,3325.9,3325.2,41.05628288]
[1722416287058,6.5656,3325.9,3325.3,3.00724]
[1722416288936,6.5656,3325.9,3325.2,41.05634288]
[1722416289135,6.5656,3325.9,3325.2,38.00733]
[1722416289346,2.4519,3325.9,3325.3,3.00719]
[1722416289642,3.5589,3325.9,3325.3,3.00718]
[1722416290768,3.5589,3325.9,3325.4,35.0]
[1722416291472,6.56561,3325.9,3325.4,35.0]
[1722416291775,3.00685,3325.8,3325.1,3.00735]
[1722416291943,3.6018,3325.7,3325.1,3.00735]
[1722416292147,3.6018,3325.7,3325.1,38.00735]
[1722416292365,3.00699,3325.6,3325.1,35.0]
[1722416292588,3.00699,3325.6,3324.9,3.00758]
[1722416292589,2.2567,3325.5,3324.9,3.00758]
[1722416293236,2.2567,3325.5,3324.9,4.019816]
[1722416294140,5.26376,3325.5,3325.0,35.0]
[1722416295259,6.37076,3325.5,3325.0,35.0]
[1722416295482,1.107,3325.3,3324.5,2.3555]
[1722416295685,2.3318,3325.2,3324.7,3.00778]
[1722416296090,2.3318,3325.2,3324.8,35.0]
[1722416296992,2.2836,3325.0,3324.4,3.00804]
[1722416297286,2.2836,3325.0,3324.4,4.595347]
[1722416297484,2.2836,3325.0,3324.5,35.0]
[1722416298254,5.2912,3325.0,3324.5,35.0]
[1722416298891,6.46917,3324.9,3324.2,3.00822]
[1722416299191,6.46917,3324.9,3324.2,3.00818]
[1722416299390,6.46917,3324.9,3324.2,3.553302]
[1722416299687,6.46917,3324.9,3324.2,6.561492]
[1722416299888,6.46917,3324.9,3324.2,3.553302]
[1722416300807,6.46917,3324.9,3324.3,35.0]
[1722416301698,3.4615,3324.9,3324.3,38.00814]
[1722416301897,3.4615,3324.9,3324.4,3.00805]
[1722416302192,3.00729,3325.3,3324.6,3.00783]
[1722416302193,2.4798,3325.2,3324.6,3.00783]
[1722416302393,2.4798,3325.2,3324.6,3.609394]
[1722416302616,6.59387,3325.5,3324.8,3.00764]
[1722416302801,6.00717,3325.4,3324.6,3.00781]
[1722416303005,6.00717,3325.4,3324.7,3.00773]
[1722416303519,6.00716,3325.4,3324.6,3.0078]
[1722416303729,1.0253347,3325.3,3324.6,3.0078]
[1722416304018,6.00716,3325.4,3324.7,3.00773]
[1722416304638,1.107,3325.3,3324.7,3.00773]
[1722416306347,1.107,3325.3,3324.8,3.00769]
[1722416306820,1.107,3325.3,3324.6,3.0078]
[1722416306997,1.107,3325.3,3324.8,3.00769]
[1722416307398,2.3489,3325.2,3324.7,3.00772]
[1722416308107,2.3489,3325.2,3324.5,3.00788]
[1722416308307,6.46325,3325.2,3324.5,3.00788]
[1722416308513,2.3935,3325.1,3324.5,3.00788]
[1722416309010,1.107,3325.0,3324.5,3.00788]
[1722416309805,2.3935,3325.1,3324.7,3.0077]
[1722416310537,2.3935,3325.1,3324.6,3.00787]
[1722416312109,2.3935,3325.1,3324.7,3.00773]
[1722416313041,2.3935,3325.1,3324.6,3.00787]
[1722416313443,3.5005,3325.1,3324.6,3.00787]
[1722416314442,3.5005,3325.1,3324.6,3.00786]
[1722416314940,2.263,3325.0,3324.4,3.00803]
[1722416315141,1.107,3324.9,3324.4,3.00803]
[1722416315340,10.48656,3326.1,3323.8,5.409]
[1722416315341,1.107,3324.7,3323.8,5.409]
[1722416315513,4.11479,3324.7,3323.9,3.00843]
[1722416315715,2.4268,3324.6,3323.9,3.00843]
[1722416315910,1.107,3324.5,3323.8,3.66018]
[1722416316249,1.107,3324.1,3323.5,3.00879]
[1722416316410,2.3698,3324.0,3323.5,3.00879]
[1722416316609,2.3698,3324.0,3323.7,3.00867]
[1722416318217,2.3698,3324.0,3323.7,3.00864]
[1722416318744,2.3698,3324.0,3323.7,3.00863]
[1722416319312,3.4488,3324.3,3323.5,0.300879]
[1722416319621,2.3418,3324.3,3323.9,3.00844]
[1722416320710,2.3418,3324.3,3324.0,3.00842]
[1722416321743,2.3418,3324.3,3324.1,3.00831]
[1722416322129,2.3418,3324.3,3324.1,6.01658]
[1722416322332,2.2889,3324.6,3324.2,3.00823]
[1722416325242,2.2889,3324.6,3324.0,3.00834]
[1722416325437,2.2889,3324.6,3324.1,3.00831]
[1722416325775,2.2889,3324.6,3324.3,3.00814]
[1722416326087,2.2889,3324.6,3324.1,3.00831]
[1722416326286,2.62849,3324.6,3324.1,3.00831]
[1722416326641,1.107,3324.5,3324.1,3.00831]
[1722416327079,1.107,3324.3,3323.9,3.00847]
[1722416327377,1.107,3324.3,3323.9,3.00844]
[1722416327675,1.107,3324.3,3324.0,3.00841]
[1722416329375,1.107,3324.3,3323.8,3.00858]
[1722416331498,1.107,3324.3,3323.8,6.01713]
[1722416332064,1.107,3324.3,3323.8,3.00855]
[1722416333699,1.107,3324.3,3323.8,6.01708]
[1722416334211,1.107,3324.3,3323.8,3.00853]
[1722416335178,1.107,3324.3,3323.8,6.01705]
[1722416335389,1.107,3324.3,3323.9,3.00851]
[1722416335574,1.107,3324.3,3324.0,3.00842]
[1722416335901,2.4209,3324.4,3324.2,3.00822]
[1722416336305,2.4209,3324.4,3324.0,6.01675]
[1722416336600,2.4209,3324.4,3324.0,3.00833]
[1722416336809,2.4209,3324.4,3324.1,3.00828]
[1722416338874,2.4209,3324.4,3324.0,3.00841]
[1722416341982,2.4209,3324.4,3324.1,3.00833]
[1722416346311,2.4209,3324.4,3324.2,3.00824]
[1722416346712,2.4209,3324.4,3324.2,6.01641]
[1722416346912,2.4209,3324.4,3324.2,3.00817]
[1722416347638,2.4209,3324.4,3322.4,3.18521403]
[1722416347639,2.3158,3324.6,3324.5,3.00796]
[1722416347814,2.3158,3324.6,3322.4,0.3013]
[1722416347815,3.4228,3325.5,3324.8,3.00762]
[1722416348211,6.42987,3325.5,3324.8,3.00762]
[1722416348565,3.00716,3325.4,3324.8,3.00762]
[1722416348849,1.749996,3325.3,3324.8,3.00762]
[1722416349047,1.107,3325.3,3324.8,3.00762]
[1722416349248,2.3158,3325.5,3324.8,3.00762]
[1722416349249,3.4228,3325.5,3324.8,3.00762]
[1722416349556,3.4228,3325.5,3325.1,3.0074]
[1722416349717,1.107,3325.3,3324.8,3.00765]
[1722416352426,6.00665,3326.0,3324.8,3.00765]
[1722416352427,9.01334,3326.0,3325.2,3.00728]
[1722416352635,2.2981,3325.9,3325.2,3.00728]
[1722416352836,0.830476,3325.8,3325.2,3.00728]
[1722416353516,1.107,3325.7,3325.0,38.00746]
[1722416353721,1.107,3325.7,3325.0,35.0]
[1722416353722,3.00698,3325.6,3325.0,35.0]
[1722416353921,1.107,3325.3,3325.0,35.0]
[1722416354124,1.46191,3325.3,3324.7,3.00776]
[1722416354644,1.46191,3325.3,3324.8,35.0]
[1722416355178,1.46191,3325.3,3324.6,3.00787]
[1722416355360,3.698464,3325.2,3324.6,3.00787]
[1722416357353,1.798124,3325.2,3324.6,3.00787]
[1722416357756,4.805484,3325.2,3324.5,35.0]
[1722416357959,1.798124,3325.2,3324.6,3.00787]
[1722416358470,2.4421,3325.4,3324.6,3.00787]
[1722416358757,2.4421,3325.4,3324.8,3.00762]
[1722416359180,5.44927,3325.4,3324.6,6.01562]
[1722416359355,6.55627,3325.4,3324.6,6.01562]
[1722416359557,6.55627,3325.4,3324.7,3.00777]
[1722416361272,3.00727,3325.3,3324.7,3.00777]
[1722416362245,3.00742,3325.1,3324.5,3.00796]
[1722416362446,1.107,3325.2,3324.5,3.00796]
[1722416362646,1.107,3325.2,3324.6,3.00786]
[1722416364355,3.00742,3325.1,3324.4,3.008]
[1722416364768,3.00742,3325.1,3324.5,3.00796]
[1722416365260,3.00742,3325.1,3324.5,38.00796]
[1722416366543,3.00742,3325.1,3324.5,35.0]
[1722416366768,5.40477,3325.0,3324.5,35.0]
[1722416366960,5.40477,3325.0,3324.1,4.11528]
[1722416366961,3.5042,3325.0,3324.1,3.00828]
[1722416367161,3.00766,3324.9,3324.1,6.01656]
[1722416367476,3.00766,3324.9,3324.2,35.0]
[1722416367654,3.5042,3325.0,3324.2,38.00823]
[1722416367864,3.0077,3324.8,3324.2,38.00823]
[1722416368058,2.3972,3325.0,3324.2,36.107]
[1722416368382,3.00761,3324.9,3324.3,3.00812]
[1722416368678,3.00761,3324.9,3324.2,39.11519]
[1722416368846,2.3745,3324.6,3324.2,35.0]
[1722416369285,2.3745,3324.6,3324.0,3.00837]
[1722416369483,2.3745,3324.6,3324.2,3.00822]
[1722416369650,2.3745,3324.6,3324.0,38.00835]
[1722416372861,5.38238,3324.6,3324.0,3.00835]
[1722416373258,5.38238,3324.6,3324.1,35.0]
[1722416374051,7.43909,3324.6,3324.1,35.0]
[1722416374175,6.48938,3324.6,3323.8,3.00855]
[1722416374537,2.4635,3324.1,3323.6,3.00871]
[1722416374741,2.4635,3324.1,3323.7,38.00869]
[1722416375091,2.4129,3324.3,3323.8,3.0086]
[1722416375832,2.4129,3324.3,3323.8,38.0086]
[1722416376307,2.4129,3324.3,3323.8,38.00854]